fUST/lending_fUST_20250625
["ID","MTS","AMOUNT","RATE_DAILY","PERIOD"]
[367496228,1750825842742,-160.0,0.00018264,2]
[367496229,1750825842751,-160.0,0.00018264,2]
[367496230,1750825842761,-151.0,0.0001827,2]
[367496231,1750825842771,-302.07678004,0.0001827,2]
[367496232,1750825842780,-501.09053302,0.0001827,2]
[367496233,1750825842789,-500.0,0.0001827,2]
[367496234,1750825842799,-500.40573627,0.0001827,2]
[367496235,1750825842808,-160.4161611,0.00018295,2]
[367496236,1750825842817,-500.0,0.00018295,2]
[367496237,1750825842826,-151.0,0.00018297,2]
[367496238,1750825842835,-151.36624201,0.00018298,2]
[367496239,1750825842846,-151.0,0.00018298,2]
[367496240,1750825842856,-151.0,0.00018298,2]
[367496241,1750825842865,-151.0,0.00018298,2]
[367496242,1750825842875,-151.0,0.00018298,2]
[367496243,1750825842884,-151.0,0.00018298,2]
[367496244,1750825842893,-151.52823145,0.00018298,2]
[367496245,1750825842903,-151.0,0.00018298,2]
[367496246,1750825842912,-283.5687599,0.00018298,2]
[367496247,1750825842921,-151.57174881,0.00018298,2]
[367496248,1750825842931,-151.52813227,0.00018298,2]
[367496249,1750825842940,-151.0,0.00018298,2]
[367496250,1750825842949,-151.0,0.00018298,2]
[367496252,1750825842959,-151.0,0.00018298,2]
[367496253,1750825842968,-151.28214266,0.00018298,2]
[367496254,1750825842978,-151.0,0.00018298,2]
[367496255,1750825842986,-165.58155532,0.00018298,2]
[367496256,1750825842995,-151.0,0.00018298,2]
[367496257,1750825843005,-460.0,0.00018302,2]
[367496259,1750825843014,-1159.64,0.00018302,2]
[367496260,1750825843023,-251.54,0.00018302,2]
[367496261,1750825843032,-460.0,0.00018302,2]
[367496262,1750825843041,-460.0,0.00018302,2]
[367496263,1750825843050,-460.0,0.00018302,2]
[367496264,1750825843059,-426.65,0.00018302,2]
[367496265,1750825843068,-460.0,0.00018302,2]
[367496266,1750825843077,-460.0,0.00018302,2]
[367496267,1750825843086,-479.69,0.00018302,2]
[367496268,1750825843098,-460.0,0.00018302,2]
[367496269,1750825843106,-460.0,0.00018302,2]
[367496270,1750825843115,-2615.86,0.00018302,2]
[367496271,1750825843125,-460.0,0.00018302,2]
[367496272,1750825843134,-1232.47,0.00018302,2]
[367496273,1750825843147,-460.0,0.00018302,2]
[367496274,1750825843156,-460.0,0.00018302,2]
[367496275,1750825843165,-460.0,0.00018303,2]
[367496276,1750825843174,-1329.71,0.00018303,2]
[367496277,1750825843183,-439.13,0.00018303,2]
[367496278,1750825843192,-3852.95,0.00018303,2]
[367496279,1750825843201,-1767.65,0.00018303,2]
[367496280,1750825843211,-1315.27,0.00018303,2]
[367496281,1750825843220,-460.0,0.00018303,2]
[367496282,1750825843230,-1165.12,0.00018303,2]
[367496283,1750825843240,-995.68,0.00018303,2]
[367496284,1750825843251,-1406.54,0.00018303,2]
[367496285,1750825843260,-460.0,0.00018304,2]
[367496286,1750825843269,-460.0,0.00018304,2]
[367496287,1750825843279,-460.0,0.00018304,2]
[367496288,1750825843288,-460.0,0.00018304,2]
[367496289,1750825843298,-460.0,0.00018304,2]
[367496290,1750825843307,-460.0,0.00018304,2]
[367496291,1750825843316,-460.0,0.00018304,2]
[367496292,1750825843325,-460.0,0.00018304,2]
[367496293,1750825843334,-151.0,0.00018304,2]
[367496294,1750825843344,-151.0,0.00018304,2]
[367496295,1750825843354,-460.0,0.00018304,2]
[367496296,1750825843363,-151.0,0.00018304,2]
[367496297,1750825843372,-151.0,0.00018304,2]
[367496298,1750825843382,-151.0,0.00018304,2]
[367496299,1750825843391,-1338.05,0.00018304,2]
[367496300,1750825843400,-460.0,0.00018304,2]
[367496301,1750825843410,-460.0,0.00018304,2]
[367496302,1750825843419,-460.0,0.00018304,2]
[367496303,1750825843429,-1003.47,0.00018304,2]
[367496304,1750825843438,-151.0,0.00018304,2]
[367496305,1750825843447,-460.0,0.00018304,2]
[367496306,1750825843457,-234.8422,0.00018304,2]
[367496307,1750825843466,-460.0,0.00018304,2]
[367496308,1750825843475,-151.0,0.00018304,2]
[367496309,1750825843485,-1504.63,0.00018304,2]
[367496310,1750825843494,-151.0,0.00018304,2]
[367496311,1750825843503,-460.0,0.00018304,2]
[367496312,1750825843513,-460.0,0.00018304,2]
[367496313,1750825843522,-151.0,0.00018304,2]
[367496314,1750825843532,-1096.02,0.00018304,2]
[367496315,1750825843541,-460.0,0.00018304,2]
[367496316,1750825843550,-151.0,0.00018304,2]
[367496317,1750825843560,-460.0,0.00018304,2]
[367496318,1750825843569,-920.62,0.00018304,2]
[367496319,1750825843579,-320.32,0.00018304,2]
[367496320,1750825843588,-545.27,0.00018304,2]
[367496321,1750825843598,-460.0,0.00018304,2]
[367496322,1750825843607,-460.0,0.00018304,2]
[367496323,1750825843617,-460.0,0.00018304,2]
[367496324,1750825843627,-151.0,0.00018305,2]
[367496325,1750825843636,-151.0,0.00018305,2]
[367496326,1750825843645,-151.0,0.00018305,2]
[367496327,1750825843655,-151.0,0.00018305,2]
[367496328,1750825843664,-460.0,0.00018305,2]
[367496329,1750825843673,-696.418075,0.00018305,2]
[367496330,1750825843683,-696.418075,0.00018305,2]
[367496331,1750825843692,-460.0,0.00018305,2]
[367496332,1750825843701,-593.64,0.00018306,2]
[367496333,1750825843710,-460.0,0.00018308,2]
[367496334,1750825843719,-154.542042,0.00018313,2]
[367496335,1750825843729,-151.342855,0.00018313,2]
[367496336,1750825843738,-151.0,0.00018313,2]
[367496337,1750825843748,-151.0,0.00018313,2]
[367496338,1750825843757,-151.0,0.00018313,2]
[367496339,1750825843768,-151.0,0.00018313,2]
[367496340,1750825843777,-459.269256,0.00018313,2]
[367496341,1750825843786,-459.269256,0.00018313,2]
[367496342,1750825843795,-151.517338,0.00018313,2]
[367496343,1750825843804,-674.65451318,0.00018318,2]
[367496344,1750825843814,-202.0,0.00018325,2]
[367496345,1750825843823,-151.0,0.00018325,2]
[367496346,1750825843832,-151.0,0.00018325,2]
[367496347,1750825843842,-151.0,0.00018325,2]
[367496348,1750825843852,-151.0,0.00018325,2]
[367496349,1750825843861,-151.0,0.00018325,2]
[367496350,1750825843870,-151.0,0.00018325,2]
[367496351,1750825843879,-151.0,0.00018325,2]
[367496352,1750825843889,-151.0,0.00018325,2]
[367496353,1750825843898,-151.0,0.00018325,2]
[367496354,1750825843907,-151.0,0.00018325,2]
[367496355,1750825843916,-151.0,0.00018325,2]
[367496356,1750825843925,-151.0,0.00018325,2]
[367496357,1750825843934,-277.98613896,0.00018325,2]
[367496358,1750825843945,-282.72602344,0.00018353,2]
[367496359,1750825843955,-199.01127713,0.00018353,2]
[367496360,1750825843964,-198.58172341,0.00018353,2]
[367496361,1750825843974,-199.91885301,0.00018353,2]
[367496362,1750825843983,-248.32217431,0.00018353,2]
[367496363,1750825843993,-151.0,0.00018353,2]
[367496364,1750825844002,-198.0,0.00018353,2]
[367496365,1750825844011,-198.0,0.00018353,2]
[367496366,1750825844021,-198.53439709,0.00018353,2]
[367496367,1750825844030,-197.48,0.0001838,2]
[367496368,1750825844164,-230.0,0.00018444,2]
[367496369,1750825844175,-4358.93802438,0.00018452,2]
[367496370,1750825844185,-420.0,0.00018492,2]
[367496371,1750825844194,-483.75401337,0.00018547,2]
[367496372,1750825844203,-179.89206476,0.0001856,2]
[367496373,1750825844212,-669.46,0.00018572,3]
[367496374,1750825844223,-334.72,0.00018572,3]
[367496375,1750825844233,-460.0,0.00018576,2]
[367496376,1750825844242,-1159.64,0.00018576,2]
[367496377,1750825844251,-460.0,0.00018576,2]
[367496378,1750825844261,-460.0,0.00018576,2]
[367496379,1750825844271,-372.47,0.00018576,2]
[367496380,1750825844280,-460.0,0.00018576,2]
[367496381,1750825844289,-151.0,0.00018576,2]
[367496382,1750825844298,-151.0,0.00018576,2]
[367496383,1750825844308,-151.0,0.00018576,2]
[367496384,1750825844317,-151.0,0.00018576,2]
[367496385,1750825844327,-460.0,0.00018576,2]
[367496386,1750825844336,-151.0,0.00018576,2]
[367496387,1750825844346,-479.69,0.00018576,2]
[367496388,1750825844355,-151.0,0.00018576,2]
[367496389,1750825844364,-151.0,0.00018576,2]
[367496390,1750825844373,-460.0,0.00018576,2]
[367496391,1750825844382,-460.0,0.00018576,2]
[367496392,1750825844391,-151.0,0.00018576,2]
[367496393,1750825844401,-151.0,0.00018576,2]
[367496394,1750825844410,-156.427824,0.00018576,2]
[367496395,1750825844419,-156.427824,0.00018576,2]
[367496396,1750825844428,-2615.86,0.00018576,2]
[367496397,1750825844437,-151.0,0.00018576,2]
[367496398,1750825844447,-151.0,0.00018576,2]
[367496399,1750825844456,-460.0,0.00018576,2]
[367496400,1750825844465,-151.0,0.00018576,2]
[367496401,1750825844475,-151.0,0.00018576,2]
[367496402,1750825844485,-196.83655,0.00018576,2]
[367496403,1750825844494,-1232.47,0.00018576,2]
[367496404,1750825844504,-196.83655,0.00018576,2]
[367496405,1750825844514,-484.57,0.00018576,2]
[367496406,1750825844523,-460.0,0.00018576,2]
[367496407,1750825844532,-151.0,0.00018576,2]
[367496408,1750825844541,-151.0,0.00018576,2]
[367496409,1750825844550,-228.802945,0.00018576,2]
[367496410,1750825844559,-151.0,0.00018576,2]
[367496411,1750825844569,-460.0,0.00018577,2]
[367496412,1750825844578,-1329.71,0.00018577,2]
[367496413,1750825844587,-3852.95,0.00018577,2]
[367496414,1750825844596,-1767.65,0.00018577,2]
[367496415,1750825844605,-1315.27,0.00018577,2]
[367496416,1750825844614,-460.0,0.00018577,2]
[367496417,1750825844624,-1165.12,0.00018577,2]
[367496418,1750825844634,-995.68,0.00018577,2]
[367496419,1750825844643,-1406.54,0.00018577,2]
[367496420,1750825844652,-460.0,0.00018578,2]
[367496421,1750825844661,-460.0,0.00018578,2]
[367496422,1750825844670,-460.0,0.00018578,2]
[367496423,1750825844680,-460.0,0.00018578,2]
[367496424,1750825844689,-460.0,0.00018578,2]
[367496425,1750825844698,-460.0,0.00018578,2]
[367496426,1750825844707,-460.0,0.00018578,2]
[367496427,1750825844718,-460.0,0.00018578,2]
[367496428,1750825844727,-460.0,0.00018578,2]
[367496429,1750825844736,-1338.05,0.00018578,2]
[367496430,1750825844745,-460.0,0.00018578,2]
[367496431,1750825844754,-460.0,0.00018578,2]
[367496432,1750825844764,-460.0,0.00018578,2]
[367496433,1750825844773,-1003.47,0.00018578,2]
[367496434,1750825844782,-426.02,0.00018578,2]
[367496435,1750825844792,-460.0,0.00018578,2]
[367496436,1750825844801,-1504.63,0.00018578,2]
[367496437,1750825844811,-460.0,0.00018578,2]
[367496438,1750825844820,-460.0,0.00018578,2]
[367496439,1750825844830,-1096.02,0.00018578,2]
[367496440,1750825844840,-559.24609903,0.00018578,2]
[367496441,1750825844850,-460.0,0.00018578,2]
[367496442,1750825844859,-920.62,0.00018578,2]
[367496443,1750825844869,-545.27,0.00018578,2]
[367496444,1750825844878,-460.0,0.00018578,2]
[367496445,1750825844888,-253.284894,0.00018578,2]
[367496446,1750825844897,-151.0,0.00018578,2]
[367496447,1750825844907,-153.047609,0.00018578,2]
[367496448,1750825844917,-151.0,0.00018578,2]
[367496449,1750825844927,-460.0,0.00018578,2]
[367496450,1750825844936,-460.0,0.00018578,2]
[367496451,1750825844945,-151.0,0.00018579,2]
[367496452,1750825844955,-151.0,0.00018579,2]
[367496453,1750825844964,-154.91995,0.00018579,2]
[367496454,1750825844973,-151.0,0.00018579,2]
[367496455,1750825844983,-460.0,0.00018579,2]
[367496456,1750825844992,-311.34223443,0.00018579,2]
[367496457,1750825845002,-593.64,0.0001858,2]
[367496458,1750825845011,-460.0,0.00018582,2]
[367496459,1750825845020,-1000.0,0.00018674,2]
[367496460,1750825845029,-4358.93802438,0.00018728,2]
[367496461,1750825845039,-1664.85186823,0.00018752,2]
[367496462,1750825845048,-805.39710031,0.00018786,2]
[367496463,1750825845057,-2000.0,0.000188,2]
[367496464,1750825845067,-1000.0,0.00018808,2]
[367496465,1750825845076,-1000.0,0.00018808,2]
[367496466,1750825845085,-1003.57020271,0.00018818,2]
[367496467,1750825845095,-1338.92,0.0001884,3]
[367496468,1750825845104,-1000.0,0.00018842,2]
[367496469,1750825845113,-460.0,0.0001885,2]
[367496470,1750825845123,-151.0,0.0001885,2]
[367496471,1750825845132,-1159.64,0.0001885,2]
[367496472,1750825845142,-151.0,0.0001885,2]
[367496473,1750825845155,-151.0,0.0001885,2]
[367496474,1750825845163,-151.0,0.0001885,2]
[367496475,1750825845173,-460.0,0.0001885,2]
[367496476,1750825845183,-460.0,0.0001885,2]
[367496477,1750825845192,-151.0,0.0001885,2]
[367496478,1750825845202,-460.0,0.0001885,2]
[367496479,1750825845212,-151.0,0.0001885,2]
[367496480,1750825845222,-151.0,0.0001885,2]
[367496481,1750825845231,-375.10276198,0.0001885,2]
[367496482,1750825845241,-151.0,0.0001885,2]
[367496483,1750825845250,-479.69,0.0001885,2]
[367496484,1750825845265,-151.0,0.0001885,2]
[367496485,1750825845274,-460.0,0.0001885,2]
[367496486,1750825845284,-460.0,0.0001885,2]
[367496487,1750825845294,-2615.86,0.0001885,2]
[367496488,1750825845303,-460.0,0.0001885,2]
[367496489,1750825845313,-1232.47,0.0001885,2]
[367496490,1750825845322,-460.0,0.0001885,2]
[367496491,1750825845332,-460.0,0.00018851,2]
[367496492,1750825845341,-1329.71,0.00018851,2]
[367496493,1750825845351,-3852.95,0.00018851,2]
[367496494,1750825845360,-1767.65,0.00018851,2]
[367496495,1750825845369,-1315.27,0.00018851,2]
[367496496,1750825845379,-460.0,0.00018851,2]
[367496497,1750825845391,-1165.12,0.00018851,2]
[367496498,1750825845401,-995.68,0.00018851,2]
[367496499,1750825845411,-1406.54,0.00018851,2]
[367496500,1750825845420,-460.0,0.00018852,2]
[367496501,1750825845429,-460.0,0.00018852,2]
[367496502,1750825845439,-460.0,0.00018852,2]
[367496503,1750825845448,-460.0,0.00018852,2]
[367496504,1750825845458,-460.0,0.00018852,2]
[367496505,1750825845467,-151.0,0.00018852,2]
[367496506,1750825845476,-460.0,0.00018852,2]
[367496507,1750825845486,-151.0,0.00018852,2]
[367496508,1750825845495,-151.0,0.00018852,2]
[367496509,1750825845505,-460.0,0.00018852,2]
[367496510,1750825845514,-696.418075,0.00018852,2]
[367496511,1750825845524,-696.418075,0.00018852,2]
[367496512,1750825845534,-1338.05,0.00018852,2]
[367496513,1750825845543,-460.0,0.00018852,2]
[367496514,1750825845552,-460.0,0.00018852,2]
[367496515,1750825845561,-460.0,0.00018852,2]
[367496516,1750825845571,-1003.47,0.00018852,2]
[367496517,1750825845580,-460.0,0.00018852,2]
[367496518,1750825845589,-1504.63,0.00018852,2]
[367496519,1750825845598,-460.0,0.00018852,2]
[367496520,1750825845608,-460.0,0.00018852,2]
[367496521,1750825845617,-1096.02,0.00018852,2]
[367496522,1750825845626,-534.73872436,0.00018852,2]
[367496523,1750825845636,-920.62,0.00018852,2]
[367496524,1750825845645,-545.27,0.00018852,2]
[367496525,1750825845654,-460.0,0.00018852,2]
[367496526,1750825845663,-460.0,0.00018852,2]
[367496527,1750825845673,-460.0,0.00018852,2]
[367496528,1750825845682,-271.2170737,0.00018853,2]
[367496529,1750825845692,-593.64,0.00018854,2]
[367496531,1750825845701,-460.0,0.00018856,2]
[367496532,1750825845710,-151.0,0.000189,2]
[367496533,1750825845720,-151.0,0.000189,2]
[367496534,1750825845729,-151.0,0.000189,2]
[367496535,1750825845739,-459.269256,0.000189,2]
[367496536,1750825845748,-459.269256,0.000189,2]
[367496537,1750825845757,-4892.1019972,0.000189,2]
[367496538,1750825845766,-163.0,0.00019,3]
[367496539,1750825845776,-163.0,0.00019,3]
[367496540,1750825845785,-163.0,0.00019,3]
[367496541,1750825845794,-163.0,0.00019,3]
[367496542,1750825845803,-163.0,0.00019,3]
[367496543,1750825845812,-163.0,0.00019,3]
[367496544,1750825845821,-163.0,0.00019,2]
[367496545,1750825845831,-163.0,0.00019,2]
[367496546,1750825845839,-163.0,0.00019,4]
[367496547,1750825845849,-166.0,0.00019,4]
[367496548,1750825845859,-9080.72125001,0.00019,2]
[367496549,1750825845868,-151.0,0.00019,2]
[367496550,1750825845877,-151.0,0.00019,2]
[367496551,1750825845887,-4358.93802438,0.00019003,2]
[367496552,1750825845896,-534.708313,0.00019004,2]
[367496553,1750825845905,-534.708313,0.00019004,2]
[367496554,1750825845914,-152.563266,0.00019004,2]
[367496555,1750825845924,-151.0,0.00019004,2]
[367496556,1750825845934,-151.0,0.00019004,2]
[367496557,1750825845943,-151.0,0.00019004,2]
[367496558,1750825845952,-151.0,0.00019004,2]
[367496559,1750825845962,-151.0,0.00019004,2]
[367496560,1750825845971,-151.0,0.00019004,2]
[367496561,1750825845980,-281.616202,0.00019004,2]
[367496562,1750825845989,-151.0,0.00019004,2]
[367496563,1750825845999,-151.0,0.00019004,2]
[367496564,1750825846008,-156.427824,0.00019004,2]
[367496565,1750825846017,-156.427824,0.00019004,2]
[367496566,1750825846026,-151.0,0.00019004,2]
[367496567,1750825846035,-151.0,0.00019004,2]
[367496568,1750825846044,-151.0,0.00019004,2]
[367496569,1750825846053,-151.0,0.00019004,2]
[367496570,1750825846063,-196.83655,0.00019004,2]
[367496571,1750825846073,-196.83655,0.00019004,2]
[367496572,1750825846082,-174.54833,0.00019034,2]
[367496573,1750825846091,-151.0,0.00019034,2]
[367496574,1750825846101,-460.0,0.00019124,2]
[367496575,1750825846110,-1159.64,0.00019124,2]
[367496576,1750825846120,-460.0,0.00019124,2]
[367496577,1750825846129,-460.0,0.00019124,2]
[367496578,1750825846139,-460.0,0.00019124,2]
[367496579,1750825846152,-479.69,0.00019124,2]
[367496580,1750825846161,-460.0,0.00019124,2]
[367496581,1750825846171,-460.0,0.00019124,2]
[367496582,1750825846180,-2615.86,0.00019124,2]
[367496583,1750825846190,-460.0,0.00019124,2]
[367496584,1750825846200,-151.0,0.00019124,2]
[367496585,1750825846210,-151.0,0.00019124,2]
[367496586,1750825846222,-1232.47,0.00019124,2]
[367496587,1750825846232,-460.0,0.00019124,2]
[367496588,1750825846241,-460.0,0.00019125,2]
[367496589,1750825846252,-1329.71,0.00019125,2]
[367496590,1750825846262,-3852.95,0.00019125,2]
[367496591,1750825846271,-1767.65,0.00019125,2]
[367496592,1750825846281,-1315.27,0.00019125,2]
[367496593,1750825846291,-460.0,0.00019125,2]
[367496594,1750825846300,-1165.12,0.00019125,2]
[367496595,1750825846310,-995.68,0.00019125,2]
[367496596,1750825846320,-1406.54,0.00019125,2]
[367496597,1750825846329,-528.22,0.00019126,2]
[367496598,1750825846339,-460.0,0.00019126,2]
[367496599,1750825846348,-502.3849849,0.00019126,2]
[367496600,1750825846357,-460.0,0.00019126,2]
[367496601,1750825846367,-460.0,0.00019126,2]
[367496602,1750825846376,-460.0,0.00019126,2]
[367496603,1750825846385,-460.0,0.00019126,2]
[367496604,1750825846395,-1338.05,0.00019126,2]
[367496605,1750825846404,-460.0,0.00019126,2]
[367496606,1750825846413,-460.0,0.00019126,2]
[367496607,1750825846422,-460.0,0.00019126,2]
[367496608,1750825846431,-1003.47,0.00019126,2]
[367496609,1750825846441,-460.0,0.00019126,2]
[367496610,1750825846450,-1504.63,0.00019126,2]
[367496611,1750825846459,-460.0,0.00019126,2]
[367496612,1750825846468,-460.0,0.00019126,2]
[367496613,1750825846478,-1096.02,0.00019126,2]
[367496614,1750825846488,-920.62,0.00019126,2]
[367496615,1750825846497,-545.27,0.00019126,2]
[367496616,1750825846507,-460.0,0.00019126,2]
[367496617,1750825846516,-460.0,0.00019126,2]
[367496618,1750825846525,-460.0,0.00019126,2]
[367496619,1750825846534,-593.64,0.00019128,2]
[367496620,1750825846544,-151.0,0.00019128,2]
[367496621,1750825846553,-151.0,0.00019128,2]
[367496622,1750825846563,-408.0,0.0001913,2]
[367496623,1750825846572,-500.0,0.00019164,2]
[367496624,1750825846582,-151.0,0.00019178,2]
[367496625,1750825846592,-400.0,0.00019178,2]
[367496626,1750825846602,-400.0,0.00019178,2]
[367496627,1750825846611,-400.0,0.00019178,2]
[367496628,1750825846620,-400.0,0.00019178,2]
[367496629,1750825846629,-255.91,0.00019178,2]
[367496630,1750825846638,-500.0,0.00019178,2]
[367496631,1750825846647,-500.0,0.00019178,2]
[367496632,1750825846657,-500.0,0.00019178,2]
[367496633,1750825846666,-500.0,0.00019178,2]
[367496634,1750825846675,-500.0,0.00019178,2]
[367496635,1750825846684,-500.0,0.00019178,2]
[367496636,1750825846694,-500.0,0.00019178,2]
[367496637,1750825846703,-500.0,0.00019178,2]
[367496638,1750825846713,-305.23624713,0.00019178,2]
[367496639,1750825846722,-802.4187796,0.00019178,2]
[367496640,1750825846731,-533.805387,0.00019178,2]
[367496641,1750825846740,-699.99999901,0.000192,2]
[367496642,1750825846749,-1176.01559857,0.00019222,2]
[367496643,1750825846758,-25000.0,0.00019253,2]
[367496644,1750825846767,-19473.80912849,0.00019253,2]
[367496645,1750825846776,-500.0,0.00019253,2]
[367496646,1750825846785,-500.0,0.00019253,2]
[367496647,1750825846794,-1688.0,0.00019253,2]
[367496648,1750825846803,-528.4441625,0.00019253,2]
[367496649,1750825846812,-500.0,0.00019253,2]
[367496650,1750825846821,-500.0,0.00019253,2]
[367496651,1750825846830,-500.0,0.00019253,2]
[367496652,1750825846839,-500.0,0.00019253,2]
[367496653,1750825846848,-500.0,0.00019253,2]
[367496654,1750825846857,-500.0,0.00019253,2]
[367496655,1750825846866,-500.0,0.00019253,2]
[367496656,1750825846875,-500.0,0.00019253,2]
[367496657,1750825846885,-207.4,0.00019253,2]
[367496658,1750825846894,-500.0,0.00019253,2]
[367496659,1750825846903,-500.0,0.00019253,2]
[367496660,1750825846912,-500.0,0.00019253,2]
[367496661,1750825846920,-500.0,0.00019253,2]
[367496662,1750825846929,-500.0,0.00019253,2]
[367496663,1750825846939,-500.0,0.00019253,2]
[367496664,1750825846948,-500.0,0.00019253,2]
[367496665,1750825846957,-500.0,0.00019253,2]
[367496666,1750825846967,-500.0,0.00019253,2]
[367496667,1750825846976,-530.23477399,0.00019253,2]
[367496668,1750825846986,-5000.0,0.00019253,2]
[367496669,1750825846995,-534.708313,0.00019253,2]
[367496670,1750825847004,-534.708313,0.00019253,2]
[367496671,1750825847014,-151.0,0.00019253,2]
[367496672,1750825847023,-216.931421,0.00019253,2]
[367496673,1750825847033,-151.0,0.00019253,2]
[367496674,1750825847042,-151.0,0.00019253,2]
[367496675,1750825847051,-459.269256,0.00019253,2]
[367496676,1750825847176,-459.269256,0.00019253,2]
[367496677,1750825847186,-151.0,0.00019253,2]
[367496678,1750825847195,-151.0,0.00019253,2]
[367496679,1750825847204,-153.134164,0.00019253,2]
[367496680,1750825847213,-151.0,0.00019253,2]
[367496681,1750825847222,-151.0,0.00019253,2]
[367496682,1750825847231,-696.418075,0.00019253,2]
[367496683,1750825847240,-154.601814,0.00019253,2]
[367496684,1750825847250,-696.418075,0.00019253,2]
[367496685,1750825847259,-151.0,0.00019253,2]
[367496686,1750825847269,-152.372758,0.00019253,2]
[367496687,1750825847278,-151.0,0.00019253,2]
[367496688,1750825847288,-151.0,0.00019253,2]
[367496689,1750825847297,-151.0,0.00019253,2]
[367496690,1750825847307,-151.0,0.00019253,2]
[367496691,1750825847316,-151.0,0.00019253,2]
[367496692,1750825847326,-151.706756,0.00019253,2]
[367496693,1750825847335,-151.0,0.00019253,2]
[367496694,1750825847346,-213.394378,0.00019253,2]
[367496695,1750825847356,-151.0,0.00019253,2]
[367496696,1750825847366,-151.0,0.00019253,2]
[367496697,1750825847375,-151.0,0.00019253,2]
[367496698,1750825847385,-156.427824,0.00019253,2]
[367496699,1750825847394,-156.427824,0.00019253,2]
[367496700,1750825847404,-151.0,0.00019253,2]
[367496701,1750825847414,-151.0,0.00019253,2]
[367496702,1750825847423,-151.0,0.00019253,2]
[367496703,1750825847432,-151.0,0.00019253,2]
[367496704,1750825847442,-260.047462,0.00019253,2]
[367496705,1750825847451,-247.404937,0.00019253,2]
[367496706,1750825847461,-196.83655,0.00019253,2]
[367496707,1750825847471,-196.83655,0.00019253,2]
[367496708,1750825847481,-151.0,0.00019253,2]
[367496709,1750825847490,-151.0,0.00019253,2]
[367496710,1750825847500,-4358.93802438,0.00019279,2]
[367496711,1750825847509,-1750.456,0.00019308,2]
[367496712,1750825847519,-151.899064,0.00019329,2]
[367496713,1750825847528,-534.708313,0.00019329,2]
[367496714,1750825847537,-534.708313,0.00019329,2]
[367496715,1750825847547,-151.0,0.00019329,2]
[367496716,1750825847557,-151.0,0.00019329,2]
[367496717,1750825847566,-151.0,0.00019329,2]
[367496718,1750825847575,-151.0,0.00019329,2]
[367496719,1750825847584,-151.0,0.00019329,2]
[367496720,1750825847593,-151.0,0.00019329,2]
[367496721,1750825847603,-151.0,0.00019329,2]
[367496722,1750825847612,-459.269256,0.00019329,2]
[367496723,1750825847621,-459.269256,0.00019329,2]
[367496724,1750825847631,-151.0,0.00019329,2]
[367496725,1750825847640,-151.0,0.00019329,2]
[367496726,1750825847649,-151.0,0.00019329,2]
[367496727,1750825847658,-151.0,0.00019329,2]
[367496728,1750825847667,-696.418075,0.00019329,2]
[367496729,1750825847676,-696.418075,0.00019329,2]
[367496730,1750825847686,-151.0,0.00019329,2]